bitfinex/quotes_ETHUSD_20260312
["timestamp","ask_amount","ask_price","bid_price","bid_amount"]
[1773323544228,6.61782885,2068.8,2067.7,0.04836291]
[1773323544428,7.24746181,2068.8,2067.7,0.04836291]
[1773323544632,7.24746181,2068.8,2067.6,0.62979787]
[1773323544841,7.24746181,2068.8,2067.7,1.20907288]
[1773323544842,0.62963296,2068.7,2067.7,1.20907288]
[1773323545026,0.62963296,2068.7,2067.8,0.04836057]
[1773323545227,6.61782885,2068.8,2067.8,0.04836057]
[1773323545228,2.99243,2068.8,2067.8,0.04836057]
[1773323545439,2.99243,2068.8,2067.7,1.20907288]
[1773323545646,0.62963296,2068.7,2067.7,1.20907288]
[1773323546523,1.75378945,2068.6,2067.5,4.83652544]
[1773323546855,1.75378945,2068.6,2067.4,1.21018984]
[1773323546856,1.75378945,2068.3,2067.4,1.21020014]
[1773323547077,0.62963296,2067.9,2067.1,0.001]
[1773323547226,1.785,2067.8,2067.1,0.001]
[1773323547427,0.62963296,2067.6,2067.1,0.001]
[1773323547627,1.62632645,2067.4,2067.1,0.001]
[1773323548037,1.62632645,2067.2,2067.1,0.001]
[1773323548356,0.62963296,2067.1,2066.1,1.21000919]
[1773323548538,0.62963296,2067.1,2066.2,0.04839802]
[1773323548734,3.41132645,2067.2,2066.2,0.04839802]
[1773323549057,1.20942383,2067.1,2066.3,1.20989207]
[1773323549238,1.20942383,2067.1,2066.4,0.04839334]
[1773323549557,1.83905679,2067.1,2066.3,1.25828775]
[1773323549737,1.20934859,2067.3,2066.3,1.25828775]
[1773323549939,1.83898155,2067.3,2066.3,1.20989207]
[1773323550235,6.6062273,2067.5,2066.3,3.46601639]
[1773323550236,1.20923411,2067.5,2066.3,3.46601639]
[1773323550542,3.60875007,2067.7,2066.6,0.62979787]
[1773323550760,2.25595941,2067.6,2066.3,1.20989207]
[1773323550945,2.25595941,2067.6,2066.4,2.25612432]
[1773323551145,1.83876661,2067.6,2066.5,1.83957285]
[1773323551346,3.46509306,2067.6,2066.5,1.83957285]
[1773323551541,1.83876661,2067.6,2066.5,1.83957285]
[1773323551751,1.83876661,2067.6,2066.4,1.20979145]
[1773323551752,0.62963296,2067.3,2066.4,1.20979145]
[1773323553361,5.46618619,2067.6,2066.3,0.62979787]
[1773323554932,0.62963296,2067.2,2066.2,1.20995063]
[1773323555334,0.62963296,2067.0,2066.0,1.21006776]
[1773323555534,2.40663296,2066.9,2066.0,1.21006776]
[1773323555834,0.62963296,2066.8,2065.8,1.2111705]
[1773323556159,2.40663296,2066.8,2065.8,1.2111705]
[1773323556376,0.62963296,2066.6,2065.8,1.21116037]
[1773323557266,1.20936039,2067.3,2066.1,0.62979787]
[1773323557748,3.61692444,2067.4,2066.2,0.67819589]
[1773323557953,3.61692444,2067.4,2066.2,0.62979787]
[1773323558250,1.83876432,2067.7,2066.2,2.38588106]
[1773323558448,6.6157065,2067.6,2066.3,0.67819355]
[1773323558653,1.779,2067.6,2066.3,0.67819355]
[1773323559248,1.20918984,2067.5,2066.4,1.20983352]
[1773323559431,1.20918984,2067.5,2066.5,0.04839099]
[1773323559832,1.20918984,2067.5,2066.4,1.20983352]
[1773323560465,0.62963296,2067.2,2066.6,0.001]
[1773323560636,1.20918984,2067.5,2066.6,0.001]
[1773323560963,0.002,2067.3,2066.6,0.001]
[1773323563965,2.37277159,2067.3,2066.6,0.001]
[1773323564359,2.37277159,2067.3,2066.4,0.001]
[1773323564360,3.607022,2067.2,2066.4,0.001]
[1773323564562,0.6146884,2067.1,2066.4,0.001]
[1773323564771,1.781,2067.0,2066.4,0.001]
[1773323564966,0.6146884,2066.9,2066.4,0.001]
[1773323565648,1.20959938,2066.8,2066.4,0.001]
[1773323566042,0.6146884,2066.9,2066.4,0.001]
[1773323566249,1.8242624,2066.9,2066.4,0.001]
[1773323568468,2.99048758,2067.0,2066.4,0.001]
[1773323569846,3.60517598,2067.0,2066.4,0.001]
[1773323570446,0.61427465,2066.6,2065.8,0.001]
[1773323570700,0.61427465,2065.8,2065.3,0.001]
[1773323570877,0.61427465,2065.8,2064.6,1.2108336]
[1773323571264,1.782,2065.9,2064.6,1.2108336]
[1773323571265,1.782,2065.9,2064.7,0.66152238]
[1773323571444,1.782,2065.9,2064.7,0.6130892]
[1773323571646,2.99215392,2065.9,2064.8,1.21077101]
[1773323571872,1.782,2065.9,2064.8,1.21077101]
[1773323572075,2.9921578,2065.9,2064.8,1.82386021]
[1773323573978,2.97500919,2066.1,2065.1,2.24154655]
[1773323574168,1.765,2066.1,2065.2,0.6130892]
[1773323574373,1.765,2066.1,2065.2,2.24154655]
[1773323574581,1.765,2066.1,2065.4,1.62845735]
[1773323574792,1.765,2066.1,2065.3,0.6130892]
[1773323575785,1.765,2066.1,2065.6,0.001]
[1773323577567,4.60350484,2066.1,2065.6,0.001]
[1773323577765,4.60350484,2066.1,2065.4,1.21141928]
[1773323577964,2.97504749,2066.1,2065.4,0.001]
[1773323578583,4.60350484,2066.1,2065.4,0.001]
[1773323579084,1.62845735,2065.9,2065.4,0.001]
[1773323579663,5.21777949,2066.1,2065.4,0.001]
[1773323580062,1.62845735,2065.9,2065.4,0.001]
[1773323580290,1.21004749,2066.1,2065.4,0.001]
[1773323580662,2.98388409,2066.4,2065.4,0.6140892]
[1773323581158,2.98388409,2066.4,2065.4,0.001]
[1773323581363,1.62845735,2066.1,2065.4,0.001]
[1773323581558,2.242732,2066.3,2065.4,0.001]
[1773323581763,1.20988409,2066.4,2065.4,0.001]
[1773323582187,1.62845735,2066.2,2065.4,0.001]
[1773323582400,1.20988409,2066.4,2065.4,0.001]
[1773323582601,2.242732,2066.2,2065.4,0.001]
[1773323583471,2.242732,2066.0,2065.4,0.001]
[1773323583660,1.776,2065.9,2065.4,0.001]
[1773323584673,2.98613068,2065.9,2065.4,0.001]
[1773323584874,1.776,2065.9,2065.4,0.001]
[1773323585198,2.98612691,2065.9,2065.4,0.001]
[1773323585363,1.776,2065.9,2065.4,0.001]
[1773323585563,2.98615034,2065.9,2065.4,0.001]
[1773323585893,4.61460769,2065.9,2065.4,0.001]
[1773323586467,1.21030209,2065.6,2065.1,0.001]
[1773323586704,1.62845735,2065.5,2065.1,0.001]
[1773323586871,1.21030209,2065.6,2064.5,1.2119173]
[1773323587074,1.62845735,2065.5,2064.5,1.26035517]
[1773323587278,1.21030209,2065.6,2064.5,1.87344437]
[1773323587478,1.21030209,2065.6,2064.6,2.24154655]
[1773323587674,1.21018491,2065.8,2064.7,0.66152238]
[1773323588602,1.21041928,2065.4,2064.5,0.001]
[1773323588977,1.779,2065.3,2064.5,0.001]
[1773323589174,1.779,2065.3,2064.5,1.62945735]
[1773323589378,1.779,2065.8,2064.8,0.6130892]
[1773323589576,1.779,2065.8,2064.9,0.6130892]
[1773323589891,1.62845735,2065.6,2064.5,0.6140892]
[1773323590284,0.61427465,2065.7,2064.5,0.6140892]
[1773323590696,1.21030209,2065.6,2065.4,0.001]
[1773323591107,1.21030209,2065.6,2065.1,0.001]
[1773323592013,2.989226,2065.8,2065.1,0.001]
[1773323592413,1.21000919,2066.1,2065.1,1.62945735]
[1773323592608,1.781,2066.0,2065.1,0.001]
[1773323592910,1.21012633,2065.9,2065.1,0.001]
[1773323593083,6.6213479,2066.0,2065.1,0.6140892]
[1773323593084,2.99109558,2066.0,2065.1,0.6140892]
[1773323593287,1.62845735,2065.9,2065.1,0.001]
[1773323593486,1.781,2066.0,2065.1,0.662513]
[1773323593678,1.781,2066.0,2065.2,0.6130892]
[1773323593879,2.99107552,2066.0,2065.2,0.6130892]
[1773323594113,2.99107552,2066.0,2065.1,0.001]
[1773323594412,2.99107552,2066.0,2065.1,0.6140892]
[1773323594413,1.781,2066.0,2065.1,0.6140892]
[1773323594716,2.99108987,2066.0,2065.3,1.21047789]
[1773323594929,1.781,2066.0,2065.3,1.21047789]
[1773323595285,1.781,2066.0,2065.3,1.82356709]
[1773323595998,2.99107886,2066.0,2065.3,1.82356709]
[1773323596205,2.99107886,2066.0,2065.3,1.21047789]
[1773323596606,1.62845735,2065.9,2065.1,1.21155136]
[1773323596907,2.99111216,2066.0,2065.1,0.6140892]
[1773323597117,2.99107542,2066.0,2065.1,0.6140892]
[1773323598210,1.62845735,2065.7,2065.1,0.001]
[1773323598406,0.61427465,2065.8,2065.1,0.001]
[1773323598785,1.2102435,2065.7,2065.1,0.001]
[1773323599382,1.21023359,2065.8,2065.1,0.001]
[1773323599795,1.21016469,2065.9,2065.1,0.001]
[1773323600281,2.99111229,2066.0,2065.1,0.001]
[1773323601523,1.781,2066.0,2065.1,0.62060331]
[1773323601707,2.99108154,2066.0,2065.1,0.66902711]
[1773323602009,2.99108154,2066.0,2065.1,0.62060331]
[1773323602206,2.99108154,2066.0,2065.1,0.001]
[1773323602207,1.62845735,2065.6,2065.1,0.001]
[1773323602706,0.62406724,2065.8,2065.1,0.001]
[1773323602707,2.25252459,2065.8,2065.1,0.001]
[1773323602908,1.782,2065.9,2065.1,0.001]
[1773323603113,0.002,2066.2,2065.6,1.62845735]
[1773323603292,0.002,2066.2,2065.4,0.61960331]
[1773323603608,1.21196088,2066.2,2065.4,0.61960331]
[1773323603807,0.002,2065.8,2065.3,0.001]
[1773323607915,0.002,2065.8,2065.4,0.61960331]
[1773323608249,0.002,2066.0,2065.4,0.61960331]
[1773323609224,0.002,2066.0,2065.5,1.21036068]
[1773323610312,0.002,2066.0,2065.3,0.001]
[1773323610313,0.002,2066.0,2065.3,1.21143624]
[1773323611117,0.002,2066.0,2065.3,0.001]
[1773323611722,0.62406724,2065.9,2065.3,0.001]
[1773323612118,0.002,2066.0,2065.3,0.001]
[1773323612716,0.62606724,2066.0,2065.3,0.001]
[1773323613227,1.83614497,2066.0,2065.3,0.001]
[1773323613431,0.002,2066.0,2065.3,2.24906066]
[1773323613615,1.21208817,2066.0,2065.3,0.001]
[1773323614632,1.83615541,2066.0,2065.3,0.001]
[1773323614840,0.62406724,2065.8,2065.3,0.001]
[1773323615132,1.21208817,2066.0,2065.3,0.001]
[1773323615502,0.002,2066.0,2065.3,0.001]
[1773323615907,0.62606724,2066.0,2065.3,0.001]
[1773323616735,2.25252459,2065.9,2065.3,0.001]
[1773323617110,0.62406724,2065.9,2065.3,0.001]
[1773323617430,0.002,2066.0,2065.3,0.001]
[1773323617843,0.62606724,2066.0,2065.3,0.001]
[1773323618020,0.002,2065.8,2065.3,0.001]
[1773323619310,0.002,2065.8,2065.3,1.21147789]
[1773323619728,0.62606724,2065.8,2065.3,0.001]
[1773323620335,0.002,2065.8,2065.3,0.001]
[1773323620706,2.25252459,2065.6,2065.0,0.001]
[1773323621305,0.62406724,2065.6,2065.0,1.21164888]
[1773323621535,1.21036068,2065.5,2065.0,0.001]
[1773323621911,2.98936068,2065.5,2065.0,0.001]
[1773323622240,1.779,2065.5,2065.0,0.001]
[1773323623739,1.779,2065.5,2065.0,0.63217202]
[1773323624310,2.98941349,2065.5,2065.0,0.001]
[1773323624544,1.779,2065.5,2065.0,0.001]
[1773323625619,2.98936577,2065.5,2065.0,0.001]
[1773323626141,1.62845735,2065.4,2064.6,1.84206032]
[1773323626354,1.62845735,2064.8,2064.3,0.001]
[1773323626512,2.21197088,2065.0,2064.3,0.001]
[1773323626715,0.58351353,2064.9,2064.3,1.21205108]
[1773323626943,2.36251353,2064.9,2064.3,0.001]
[1773323627740,1.21077101,2064.8,2064.3,0.001]
[1773323628258,1.779,2064.9,2064.3,0.001]
[1773323628547,1.779,2064.9,2064.3,0.04944257]
[1773323629354,1.21059512,2065.1,2064.3,0.001]
[1773323629851,1.21059512,2065.1,2064.3,2.26155472]
[1773323630051,1.21059512,2065.1,2064.4,0.04844022]
[1773323630415,4.84201975,2065.3,2064.4,0.04844022]
[1773323630652,0.59866521,2065.2,2064.3,0.001]
[1773323631747,1.21059512,2065.1,2064.3,0.001]
[1773323632253,1.21059512,2065.1,2064.5,0.0011]
[1773323632451,0.001,2065.0,2064.5,0.0011]
[1773323634353,0.59966521,2065.0,2064.5,0.0011]
[1773323634730,0.001,2065.0,2064.5,0.0011]
[1773323637965,1.779,2065.4,2064.5,0.61608142]
[1773323638153,1.779,2065.4,2064.6,1.2108883]
[1773323638339,1.779,2065.4,2064.6,1.82586972]
[1773323638537,2.98943298,2065.4,2064.6,1.82586972]
[1773323640037,2.98943298,2065.4,2064.7,0.04843318]
[1773323640442,2.98943298,2065.4,2064.6,1.82586972]
[1773323640872,1.21222971,2065.8,2064.8,1.6293827]
[1773323641069,1.21218619,2065.8,2064.9,0.61498142]
[1773323641739,1.21218619,2065.8,2064.6,2.840271]
[1773323641740,0.59866521,2065.6,2064.6,1.82586972]
[1773323642585,1.21036068,2065.5,2064.6,1.82586972]
[1773323643340,1.80897812,2065.6,2064.7,0.61498142]
[1773323643643,1.80897812,2065.6,2064.7,0.6634146]
[1773323643874,1.80897812,2065.6,2064.7,0.61498142]
[1773323644580,0.001,2065.4,2064.8,1.21077101]
[1773323644866,0.001,2065.4,2064.8,3.50356597]
[1773323645071,0.001,2065.4,2064.8,3.45513513]
[1773323645240,0.001,2065.4,2064.8,1.82575243]
[1773323646700,0.001,2065.4,2064.9,0.66340991]
[1773323647592,0.001,2065.4,2064.8,1.21077101]
[1773323648460,0.001,2065.4,2064.8,1.82575243]
[1773323648787,0.001,2065.4,2064.9,0.04842849]
[1773323648994,0.001,2065.4,2065.0,1.21065375]
[1773323649361,1.21218918,2065.8,2065.1,0.61498142]
[1773323649609,0.002,2065.8,2065.1,0.61498142]
[1773323649795,1.21218538,2065.8,2065.1,0.61498142]
[1773323650364,0.59866521,2065.7,2065.0,1.21065375]
[1773323650680,0.59866521,2065.7,2064.7,4.84308407]
[1773323650989,0.59866521,2065.3,2064.5,0.0011]
[1773323652990,1.21041928,2065.4,2064.5,0.0011]
[1773323652991,0.59866521,2065.1,2064.5,0.0011]
[1773323653407,1.21065375,2065.0,2064.5,0.0011]
[1773323653716,0.59866521,2064.9,2064.5,0.0011]
[1773323654698,0.59866521,2064.9,2064.3,0.001]
[1773323655608,4.61203645,2065.0,2064.3,0.001]
[1773323655609,3.58132269,2065.0,2064.3,0.001]
[1773323655807,0.59866521,2064.9,2064.3,0.001]
[1773323656214,0.59866521,2064.9,2064.7,0.001]
[1773323657705,0.59866521,2064.9,2064.3,0.001]
[1773323657706,0.59866521,2064.8,2064.3,0.001]
[1773323657896,0.59866521,2064.7,2064.0,0.001]
[1773323658213,0.59866521,2064.5,2064.1,0.001]
[1773323658404,0.59866521,2064.5,2064.2,0.001]
[1773323659910,1.80963696,2064.5,2064.2,0.001]
[1773323660106,0.59866521,2064.5,2064.2,0.001]
[1773323660313,1.80962268,2064.5,2064.2,0.001]
[1773323660928,1.80962268,2064.5,2064.2,0.002]
[1773323661314,0.54741879,2064.4,2064.2,0.001]
[1773323661633,1.771,2064.5,2064.2,0.002]
[1773323662212,2.98199029,2064.5,2064.2,0.002]
[1773323662409,2.17680149,2064.3,2064.0,0.001]
[1773323662614,0.54741879,2064.2,2063.3,1.77780061]
[1773323663032,0.54741879,2064.2,2063.4,0.001]
[1773323663507,1.771,2064.3,2063.4,2.19656003]
[1773323663709,1.771,2064.3,2063.6,1.21147509]
[1773323663910,1.771,2064.3,2063.7,0.001]
[1773323664133,2.98207229,2064.3,2063.7,0.001]
[1773323664316,3.52949108,2064.3,2063.7,0.001]
[1773323664515,2.31841879,2064.3,2063.7,0.001]
[1773323664717,1.771,2064.3,2063.7,0.001]
[1773323664911,1.771,2064.3,2063.7,0.61563398]
[1773323665111,1.771,2064.3,2063.7,0.56717733]
[1773323665813,1.771,2064.3,2063.8,1.21135768]
[1773323667138,1.75826388,2064.7,2063.8,1.77753501]
[1773323667438,1.75826388,2064.7,2063.9,0.001]
[1773323667751,1.75835345,2064.6,2063.9,0.001]
[1773323668042,0.54741879,2064.5,2063.9,0.001]
[1773323669843,0.54741879,2064.3,2063.9,0.001]
[1773323670043,0.54741879,2064.6,2063.9,0.001]
[1773323670265,0.54741879,2064.5,2064.1,0.001]
[1773323671577,0.54741879,2064.5,2064.1,0.002]
[1773323671782,0.54741879,2064.3,2063.6,0.001]
[1773323671954,0.54741879,2064.3,2063.2,0.56617733]
[1773323672144,1.77,2064.2,2063.2,1.6293827]
[1773323672354,1.77,2064.2,2063.3,0.56617733]
[1773323673777,1.77,2064.2,2063.4,1.21159251]
[1773323673981,1.77,2064.2,2063.4,1.77776984]
[1773323674180,1.77,2064.2,2063.5,0.56617733]
[1773323675479,1.77,2064.2,2063.4,1.21159251]
[1773323675480,1.77,2064.2,2063.6,2.24401903]
[1773323675660,1.77,2064.2,2063.4,1.77776984]
[1773323675859,3.52857769,2064.2,2063.4,1.77776984]
[1773323676074,0.54741879,2064.1,2063.4,1.21159251]
[1773323676304,0.54741879,2064.1,2063.2,1.21170996]
[1773323676504,0.54741879,2064.1,2063.2,1.26017835]
[1773323676670,0.54741879,2064.1,2063.2,1.82635568]
[1773323677400,2.9811589,2064.2,2063.4,2.19556003]
[1773323677401,1.77,2064.2,2063.4,2.19556003]
[1773323677575,1.77,2064.2,2063.5,0.61463868]
[1773323677774,1.77,2064.2,2063.6,1.21147509]
[1773323678401,1.77,2064.2,2063.7,0.56617733]
[1773323678607,1.77,2064.2,2063.6,1.21147509]
[1773323680206,1.77,2064.2,2063.6,0.56617733]
[1773323680377,1.21286817,2064.7,2063.7,0.56617733]
[1773323680577,0.54941879,2064.7,2063.7,0.56617733]
[1773323680778,0.002,2064.7,2064.1,0.56617733]
[1773323681410,0.002,2064.7,2064.2,1.6293827]
[1773323681599,1.21048228,2065.3,2064.5,0.56617733]
[1773323681797,1.21053761,2065.2,2064.5,0.56617733]
[1773323681992,1.21053761,2065.2,2064.3,2.50284766]
[1773323681993,1.21064815,2065.1,2064.4,1.21100561]
[1773323682387,1.21064815,2065.1,2064.3,1.21102664]
[1773323683378,1.21064815,2065.1,2064.1,4.84458125]
[1773323683379,0.55751885,2064.9,2064.1,4.84458125]
[1773323684309,1.76827096,2064.9,2064.1,4.84458125]
[1773323684488,0.55551885,2064.8,2063.7,0.52872381]
[1773323684810,0.55651885,2064.7,2063.7,0.52872381]
[1773323685830,0.55651885,2064.7,2063.6,1.21147509]
[1773323685831,0.55551885,2064.5,2063.6,1.21147509]
[1773323685985,2.18490155,2064.4,2063.6,1.21147509]
[1773323686488,2.18490155,2064.4,2063.5,1.2126338]
[1773323686489,1.21106428,2064.3,2063.5,1.2126338]
[1773323686695,1.76658313,2064.3,2063.5,1.2126338]
[1773323687424,0.55551885,2064.3,2063.6,0.048459]
[1773323687579,0.55551885,2064.3,2063.5,1.2126338]
[1773323688115,0.55551885,2064.3,2063.6,0.048459]
[1773323688408,1.21101998,2064.4,2063.6,0.048459]
[1773323688409,1.7664482,2064.6,2063.7,1.21141638]
[1773323688788,1.21184063,2064.7,2063.8,0.57717811]
[1773323688988,0.55651885,2064.7,2063.8,0.57717811]
[1773323689193,0.55551885,2064.6,2063.7,1.21141638]
[1773323689698,0.55551885,2064.6,2063.7,1.74014019]
[1773323690486,0.001,2064.7,2063.8,0.53282402]
[1773323690811,1.21183953,2064.7,2063.8,0.53282402]
[1773323691023,0.52662485,2064.6,2063.6,4.84566555]
[1773323691635,0.52662485,2064.5,2063.6,4.84566555]
[1773323692335,0.52662485,2064.5,2063.5,1.74539911]
[1773323692336,0.52662485,2064.3,2063.5,1.26103644]
[1773323692839,1.73773669,2064.3,2063.5,0.0011]
[1773323693915,0.52662485,2064.3,2063.5,0.0011]
[1773323694299,1.73769437,2064.3,2063.5,0.0011]
[1773323694712,0.52662485,2064.3,2063.5,1.2126338]
[1773323694917,0.52662485,2064.3,2063.6,0.048459]
[1773323695432,0.52662485,2064.6,2063.7,0.53282402]
[1773323695621,0.52662485,2064.6,2063.8,0.53282402]
[1773323696132,1.21183354,2064.7,2063.8,0.53282402]
[1773323696538,1.73845839,2064.7,2063.8,0.53282402]
[1773323696713,0.001,2064.7,2063.9,1.21129899]
[1773323696911,0.001,2064.7,2063.9,1.79257496]
[1773323697433,0.001,2064.7,2063.9,1.74412301]
[1773323698115,0.001,2064.5,2063.9,1.74412301]
[1773323699627,0.52762485,2064.5,2063.9,1.21129899]
[1773323699829,0.52762485,2064.5,2063.8,4.84542855]
[1773323701265,0.52662485,2064.4,2063.8,4.84542855]
[1773323701466,0.52662485,2063.9,2063.3,1.2127307]
[1773323701753,0.52662485,2063.7,2063.3,0.0011]
[1773323701954,0.52662485,2063.7,2062.8,4.84766704]
[1773323702130,3.07176423,2063.9,2062.9,0.53282402]
[1773323702453,0.52662485,2063.8,2062.8,4.84766704]
[1773323703226,2.54513938,2063.9,2062.7,3.71479258]
[1773323703227,1.73821736,2063.4,2062.7,1.2119908]
[1773323703658,0.52662485,2063.3,2062.7,1.2119908]
[1773323704040,0.52662485,2063.3,2062.6,0.161437]
[1773323704225,0.52662485,2063.3,2062.6,1.37347969]
[1773323704932,2.28362485,2063.6,2062.6,1.90630371]
[1773323705253,2.28362485,2063.6,2062.6,1.37347969]
[1773323705254,1.73821736,2063.4,2062.6,1.37347969]
[1773323705448,0.52662485,2063.3,2062.6,1.37347969]
[1773323705950,3.49514183,2063.6,2062.6,3.53700844]
[1773323706177,0.52662485,2063.5,2062.6,1.37347969]
[1773323706550,0.52662485,2063.5,2062.6,1.90630371]
[1773323706753,1.73792869,2063.9,2063.0,2.16352875]
[1773323706954,0.52662485,2063.9,2063.0,2.16352875]
[1773323707453,0.52662485,2063.9,2063.1,1.21176869]
[1773323707652,0.52662485,2063.8,2062.9,1.21188617]
[1773323708181,0.52662485,2063.4,2062.6,1.37347051]
[1773323708357,0.52662485,2063.2,2062.6,0.161437]
[1773323708557,0.52662485,2063.2,2062.6,1.37349752]
[1773323708753,0.52662485,2063.2,2062.6,0.161437]
[1773323708974,2.15732958,2063.1,2062.6,0.161437]
[1773323709287,1.21168137,2063.3,2062.6,1.3734886]
[1773323709475,1.73830622,2063.3,2062.6,1.3734886]
[1773323709680,0.52662485,2063.2,2062.6,1.3734886]
[1773323710160,0.52662485,2063.1,2062.6,0.161437]
[1773323710575,0.52662485,2063.1,2062.3,1.99647087]
[1773323711187,0.52662485,2063.1,2062.3,0.78423287]
[1773323711486,0.52662485,2062.4,2061.0,0.53282402]
[1773323711662,0.52662485,2062.4,2060.9,6.48224752]
[1773323711663,0.52662485,2062.4,2061.2,0.53282402]
[1773323712183,1.63070473,2062.3,2061.2,0.53282402]
[1773323712387,0.52662485,2061.9,2060.9,4.85154279]
[1773323712715,2.15732958,2061.8,2060.6,1.74606288]
[1773323713186,0.52662485,2061.7,2060.6,1.74606288]
[1773323713360,1.21265036,2061.6,2060.6,1.74606288]
[1773323713554,1.73922301,2061.7,2060.6,1.74606288]
[1773323714078,2.54513938,2061.9,2060.9,1.63070473]
[1773323714279,1.21245686,2062.0,2061.0,0.53282402]
[1773323714662,1.73908171,2062.0,2061.0,0.53282402]
[1773323714859,1.73908171,2062.0,2060.6,1.21323886]
[1773323714860,0.52662485,2061.9,2060.6,1.21323886]
[1773323715188,0.52662485,2061.6,2060.6,1.21323886]
[1773323715781,1.21270919,2061.5,2060.5,4.85224901]
[1773323716572,1.73932057,2061.6,2060.5,5.38507303]
[1773323716799,2.95358572,2061.8,2060.9,1.63070473]
[1773323716960,2.95358572,2061.8,2060.7,0.53282402]
[1773323717784,5.3759176,2062.2,2061.1,2.16352875]
[1773323718088,5.3759176,2062.2,2061.1,0.53282402]
[1773323718471,1.73892239,2062.2,2061.1,2.16352875]
[1773323718678,1.21226054,2062.3,2061.4,0.53282402]
[1773323718973,4.84892473,2062.4,2061.1,3.22170473]
[1773323718974,4.28389342,2062.5,2061.5,2.16352875]
[1773323719173,0.52662485,2062.5,2061.5,2.16352875]
[1773323719374,1.73875139,2062.5,2061.5,0.53282402]
[1773323719589,1.21203158,2062.7,2061.5,0.53282402]
[1773323719894,5.08059293,2062.8,2061.7,1.74541557]
[1773323720569,1.21186727,2063.0,2062.0,2.19834511]
[1773323720769,2.18647436,2062.9,2061.7,1.78023193]
[1773323721118,0.55576963,2062.9,2061.7,1.21259155]
[1773323721296,0.55576963,2062.9,2061.8,0.56764038]
[1773323721497,0.55576963,2062.9,2061.8,2.19834511]
[1773323721684,0.55576963,2062.9,2061.9,1.78011431]
[1773323721685,1.21192473,2062.9,2061.9,1.78011431]
[1773323722079,1.21176869,2063.1,2062.0,0.56764038]
[1773323722709,0.55576963,2063.0,2062.0,0.56764038]
[1773323722880,2.18647436,2062.9,2061.9,1.21247393]
[1773323723210,0.55576963,2062.9,2061.9,1.21247393]
[1773323723418,0.55576963,2062.6,2061.6,4.85059592]
[1773323723711,1.21229754,2062.2,2061.1,1.21294454]
[1773323724010,2.18647436,2062.1,2061.1,1.21294454]
[1773323724314,0.55576963,2062.0,2061.1,1.21294454]
[1773323724834,1.21229754,2062.2,2061.0,1.21295749]
[1773323724835,2.18647436,2061.9,2061.0,1.21295749]
[1773323725112,0.55576963,2061.8,2061.0,1.21295749]
[1773323725785,1.21259155,2061.7,2060.9,0.0011]
[1773323726520,2.84329628,2061.7,2060.9,0.0011]
[1773323726808,0.55576963,2061.6,2060.9,0.0011]
[1773323727307,0.55576963,2061.9,2060.9,0.0011]
[1773323727815,1.21259155,2061.7,2060.9,0.0011]
[1773323728309,1.76836118,2061.7,2060.9,0.0011]
[1773323728481,2.18647436,2061.6,2060.9,0.0011]
[1773323729802,2.84353158,2061.3,2060.6,0.0011]
[1773323730602,3.39930121,2061.3,2060.6,0.0011]
[1773323731197,0.55576963,2061.3,2060.6,0.0011]
[1773323731399,1.742,2061.4,2060.6,0.56874038]
[1773323731600,4.58547398,2061.4,2060.6,0.0011]
[1773323732011,0.55576963,2061.3,2060.6,0.0011]
[1773323732638,1.21265036,2061.6,2060.6,0.56874038]
[1773323732839,1.63070473,2061.8,2060.8,0.56764038]
[1773323732840,1.21257781,2061.8,2060.8,0.56764038]
[1773323733541,2.84328254,2061.8,2060.8,0.56764038]
[1773323733743,1.63070473,2061.5,2060.6,0.0011]
[1773323734038,1.63070473,2061.7,2060.6,1.26286841]
[1773323734237,1.76834744,2061.8,2060.6,1.83050879]
[1773323734433,1.76834744,2061.8,2060.7,1.63070473]
[1773323734633,1.76834744,2061.8,2060.7,2.19834511]
[1773323734811,1.76834744,2061.8,2060.7,0.56764038]
[1773323735634,1.21257781,2061.8,2060.7,0.56764038]
[1773323736014,4.85012247,2061.9,2060.8,1.21312111]
[1773323736213,5.4058921,2061.9,2060.8,1.21312111]
[1773323736425,5.4058921,2061.9,2060.8,1.78076149]
[1773323736629,1.21247393,2061.9,2060.9,0.56764038]
[1773323736947,2.95445489,2062.0,2060.9,0.56764038]
[1773323737162,1.742,2062.0,2061.0,0.61616051]
[1773323737437,2.95442569,2062.0,2061.0,0.61616051]
[1773323737612,2.95442569,2062.0,2061.0,0.56764038]
[1773323737613,5.14090005,2062.0,2061.0,0.56764038]
[1773323737819,3.51019532,2062.0,2061.0,0.56764038]
[1773323738206,3.51019532,2062.0,2061.1,1.21294454]
[1773323738207,2.95442569,2062.0,2061.1,1.21294454]
[1773323738411,4.8494278,2062.1,2061.2,0.56764038]
[1773323738412,1.21235633,2062.1,2061.2,0.56764038]
[1773323738611,1.21335633,2062.1,2061.2,0.56764038]
[1773323739015,0.001,2062.1,2061.2,0.56764038]
[1773323739216,0.001,2062.1,2061.1,2.84364927]
[1773323739217,0.001,2062.1,2061.4,0.56764038]
[1773323739939,1.63070473,2062.0,2061.1,1.78058492]
[1773323740140,2.84323746,2061.8,2060.9,0.0011]
[1773323740345,1.21253273,2061.8,2060.9,0.0011]
[1773323740637,1.741,2061.9,2060.9,0.56874038]
[1773323740838,2.95350466,2061.9,2061.1,0.56764038]
[1773323741231,0.001,2062.1,2061.1,0.56764038]
[1773323741541,2.9544002,2062.1,2061.1,2.19834511]
[1773323741710,2.9543627,2062.1,2061.2,0.56764038]
[1773323741910,2.9543627,2062.1,2060.9,0.56874038]
[1773323741911,0.55576963,2061.9,2060.9,0.56874038]
[1773323742111,1.21253273,2061.8,2061.0,1.21300339]
[1773323742510,0.55576963,2061.7,2060.9,1.21411956]
[1773323742746,2.18647436,2061.2,2060.6,0.0011]
[1773323742943,1.74,2061.3,2060.6,1.21433517]
[1773323743342,3.91384125,2061.3,2060.6,0.0011]
[1773323743530,0.54313652,2061.2,2060.6,1.21433424]
[1773323743736,1.74,2061.3,2060.7,0.04852719]
[1773323743923,0.54313652,2061.6,2060.6,1.26286379]
[1773323744117,1.75581572,2061.6,2060.6,1.76288801]
[1773323744321,1.2126792,2061.6,2060.7,0.50002422]
[1773323744831,0.54313652,2061.5,2060.6,1.26286379]
[1773323745221,1.63070473,2061.4,2060.6,1.21433424]
[1773323745722,0.54313652,2061.3,2060.6,1.21432207]